bitfinex-derivatives/quotes_ETHF0:USTF0_20251223
["timestamp","ask_amount","ask_price","bid_price","bid_amount"]
[1766457950703,2.20953689,2992.4,2989.5,10.60853689]
[1766457950910,2.20953689,2991.4,2988.7,5.55053689]
[1766457951095,2.20953689,2991.0,2988.7,12.03453689]
[1766457951299,0.00501605,2990.1,2989.6,1.605e-05]
[1766457951712,0.00404634,2990.1,2989.6,0.00273473]
[1766457952096,0.00404634,2990.1,2988.7,3.341]
[1766457952296,0.00404634,2990.1,2988.7,5.55053689]
[1766457952511,3.341,2990.8,2989.1,2.20953689]
[1766457952703,3.341,2990.8,2989.2,18.179]
[1766457952899,2.20953689,2991.7,2989.2,18.179]
[1766457953100,0.642,2991.6,2990.2,0.00501605]
[1766457953301,2.20953689,2992.0,2990.2,0.00501605]
[1766457953502,13.087,2991.9,2990.2,0.00919304]
[1766457954312,0.00501605,2991.3,2990.2,0.00919304]
[1766457954605,0.00501605,2991.3,2990.2,0.19585213]
[1766457954796,3.342,2991.9,2990.3,2.20953689]
[1766457954995,0.00293666,2992.0,2990.7,2.20953689]
[1766457955203,0.00293666,2992.0,2990.8,3.342]
[1766457955397,3.342,2992.5,2991.1,2.20953689]
[1766457955598,1.47426164,2993.1,2990.9,3.72796775]
[1766457955800,4.27,2993.0,2991.1,0.18665909]
[1766457955995,0.00501605,2992.3,2991.7,0.00501605]
[1766457956395,4.56701605,2992.3,2990.7,3.342]
[1766457956609,4.57042188,2992.3,2990.7,3.342]
[1766457956804,2.20953689,2991.9,2990.2,0.00417699]
[1766457957003,3.342,2991.8,2990.3,3.342]
[1766457957310,2.736,2991.7,2990.3,3.342]
[1766457957601,11.092,2991.7,2990.7,0.00501605]
[1766457957796,9.14,2991.6,2990.7,0.00501605]
[1766457958000,2.20953689,2991.1,2989.3,3.342]
[1766457958199,9.14,2991.0,2989.3,3.342]
[1766457958395,8.357,2990.9,2989.3,3.342]
[1766457958596,2.20953689,2990.7,2989.3,3.342]
[1766457958810,3.342,2990.6,2989.3,3.342]
[1766457958999,0.00501605,2990.2,2989.7,0.00501605]
[1766457959203,9.142,2990.1,2989.7,0.00501605]
[1766457959510,9.142,2990.1,2988.7,3.343]
[1766457959711,9.142,2990.1,2988.7,3.5365987]
[1766457960007,3.343,2990.0,2989.0,0.1935987]
[1766457960208,3.343,2990.0,2989.1,3.343]
[1766457960408,0.008458,2990.2,2989.3,0.00501605]
[1766457960608,0.008458,2990.2,2989.4,3.343]
[1766457961009,0.008458,2990.2,2989.4,0.1935987]
[1766457961206,3.343,2990.1,2989.3,0.00501605]
[1766457961609,5.55253689,2990.1,2989.3,1.605e-05]
[1766457962013,5.55253689,2990.1,2988.3,3.343]
[1766457962307,2.20953689,2989.7,2987.5,3.343]
[1766457962610,17.502,2989.6,2987.5,3.343]
[1766457963010,17.502,2989.6,2988.3,0.00334264]
[1766457963206,17.502,2989.6,2987.5,3.34614554]
[1766457963207,0.16736,2989.4,2987.5,0.00314554]
[1766457963412,3.344,2989.3,2987.5,0.00314554]
[1766457963614,17.504,2989.2,2987.5,0.00314554]
[1766457964311,0.00501605,2988.6,2987.5,0.19935011]
[1766457964511,3.34901605,2988.6,2987.5,0.00314554]
[1766457964703,1.765,2988.5,2987.2,3.344]
[1766457965112,0.00501605,2988.6,2987.2,3.344]
[1766457965305,3.344,2988.5,2987.2,3.344]
[1766457965602,3.344,2988.5,2987.2,3.34642875]
[1766457965808,0.00501605,2988.6,2987.2,3.34642875]
[1766457966314,0.00501605,2988.6,2987.3,18.197]
[1766457966511,0.00501605,2988.6,2987.2,0.00242875]
[1766457966715,0.00501605,2988.6,2987.4,6.49]
[1766457967012,0.00501605,2988.6,2987.2,0.00242875]
[1766457967418,0.00501605,2988.6,2987.3,3.345]
[1766457968212,3.345,2988.5,2987.3,3.345]
[1766457968620,0.00501605,2988.6,2987.3,3.345]
[1766457968811,3.35001605,2988.6,2987.3,3.345]
[1766457969014,0.00501605,2988.6,2987.3,3.345]
[1766457969217,0.00501605,2988.6,2987.2,0.16989875]
[1766457969609,2.68203304,2990.9,2987.5,2.51476304]
[1766457969811,3.345,2990.1,2988.0,2.51476304]
[1766457970113,3.345,2990.1,2988.1,18.199]
[1766457970315,3.345,2990.1,2988.2,11.709]
[1766457970508,3.345,2990.1,2988.3,3.345]
[1766457970714,0.00501605,2989.4,2988.9,1.605e-05]
[1766457970915,3.345,2989.3,2988.9,1.605e-05]
[1766457971109,0.00501605,2989.4,2988.9,1.605e-05]
[1766457971522,1.605e-05,2989.4,2989.0,3.345]
[1766457971722,0.00344195,2990.2,2989.0,3.345]
[1766457972424,0.00344195,2990.2,2988.9,1.605e-05]
[1766457972620,0.00501605,2989.8,2989.0,3.345]
[1766457972820,0.00344195,2990.2,2989.0,3.345]
[1766457973320,0.51669742,2990.4,2989.0,3.345]
[1766457973614,0.51669742,2990.4,2988.9,0.16739605]
[1766457973615,3.345,2990.9,2988.9,0.16739605]
[1766457973818,3.345,2990.8,2989.1,6.49]
[1766457974016,0.00501605,2990.2,2989.1,6.49]
[1766457974218,0.00758981,2990.2,2989.1,6.49]
[1766457974413,0.00758981,2990.2,2988.9,1.605e-05]
[1766457974620,0.00758981,2990.2,2989.0,9.836]
[1766457974821,1.17506611,2991.0,2989.0,9.836]
[1766457975023,3.345,2991.0,2989.2,2.51476304]
[1766457975220,3.345,2991.0,2989.3,3.51236]
[1766457975527,3.345,2991.2,2989.4,18.2]
[1766457975724,8.364,2991.8,2989.4,18.2]
[1766457975725,1.16510687,2991.8,2989.7,2.51476304]
[1766457975924,0.00501605,2991.0,2990.5,0.00501605]
[1766457976125,0.00290103,2991.8,2990.6,3.345]
[1766457976418,1.16510687,2992.5,2990.7,2.51476304]
[1766457976723,3.345,2992.4,2990.8,40.8]
[1766457976924,3.345,2992.4,2990.9,3.345]
[1766457977126,0.00501605,2991.9,2990.9,3.345]
[1766457977330,4.83116791,2992.3,2990.9,3.345]
[1766457977524,1.48616791,2992.3,2990.9,3.345]
[1766457978122,3.345,2992.7,2991.0,14.858]
[1766457978324,0.00501605,2992.1,2991.0,18.203]
[1766457978624,3.35001605,2992.1,2990.8,40.8]
[1766457980025,0.00501605,2992.1,2990.8,40.8]
[1766457980331,3.345,2992.0,2990.8,40.8]
[1766457982020,3.345,2992.0,2990.8,3.344]
[1766457983032,1.17012292,2992.1,2990.8,3.344]
[1766457983033,3.344,2991.9,2990.8,3.344]
[1766457983333,0.00501605,2992.1,2990.8,3.344]
[1766457983730,3.34901605,2992.1,2990.8,3.344]
[1766457985236,0.00501605,2992.1,2990.8,3.344]
[1766457985439,0.98791669,2992.0,2990.8,3.344]
[1766457985642,1.1693878,2992.7,2990.8,5.85876304]
[1766457985937,3.34828093,2992.7,2990.9,33.446]
[1766457986142,3.34828093,2992.7,2991.0,8.361]
[1766457986434,3.34828093,2992.7,2991.1,9.846]
[1766457986639,0.00332799,2992.2,2991.1,9.846]
[1766457986932,0.00332799,2992.2,2990.7,0.16728]
[1766457987135,0.00428093,2992.7,2990.8,54.33403304]
[1766457987332,0.00428093,2992.7,2990.8,58.04338199]
[1766457987530,3.344,2993.0,2991.3,2.51476304]
[1766457987734,3.344,2993.3,2991.5,0.16723]
[1766457987936,3.344,2993.3,2991.6,8.36]
[1766457988232,3.344,2993.3,2992.2,0.00501605]
[1766457988538,3.344,2993.3,2992.3,3.344]
[1766457988739,3.34726104,2993.3,2992.3,3.344]
[1766457989130,0.00326104,2993.3,2992.3,3.344]
[1766457990033,1.33218687,2994.4,2992.3,3.344]
[1766457990230,3.344,2994.3,2992.3,5.85876304]
[1766457990936,3.34731688,2994.3,2992.3,5.85876304]
[1766457991133,0.00331688,2994.3,2992.4,3.72789358]
[1766457991436,3.34631688,2994.3,2992.5,18.203]
[1766457992030,0.00331688,2994.3,2992.5,18.203]
[1766457992237,3.343,2994.2,2992.5,18.203]
[1766457993236,3.343,2994.2,2992.2,0.0077312]
[1766457993442,3.343,2994.2,2992.3,11.813]
[1766457993640,3.343,2994.2,2992.4,40.8]
[1766457995538,0.00331688,2994.3,2992.4,40.8]
[1766457995737,3.343,2994.1,2992.4,40.8]
[1766457997945,3.343,2994.1,2992.4,43.31476304]
[1766457998845,0.00331688,2994.3,2992.4,43.31476304]
[1766457999343,3.342,2994.2,2992.4,43.31476304]
[1766458000947,0.9832318,2994.1,2992.5,18.235]
[1766458001143,4.399,2994.0,2992.2,0.0077312]
[1766458001348,0.9832318,2993.9,2992.3,3.347]
[1766458001547,3.342,2994.0,2992.3,3.347]
[1766458001844,3.342,2994.0,2992.4,40.8]
[1766458004747,0.00331688,2994.3,2992.6,2.51476304]
[1766458004947,3.34531688,2994.3,2992.7,18.239]
[1766458005143,0.00331688,2994.3,2992.7,18.239]
[1766458005359,0.00331688,2994.3,2992.7,21.78712548]
[1766458006847,0.00331688,2994.3,2992.7,18.239]
[1766458007254,0.00331688,2994.3,2992.8,40.8]
[1766458007447,0.00331688,2994.3,2992.8,43.31476304]
[1766458007754,3.342,2994.5,2992.9,3.64963472]
[1766458007954,3.342,2994.6,2993.0,9.89]
[1766458008152,3.342,2994.6,2993.5,0.00501605]
[1766458008447,5.798,2995.1,2993.6,9.892]
[1766458008752,4.28912012,2995.0,2993.6,9.892]
[1766458008944,0.94712012,2994.9,2993.6,9.892]
[1766458011143,0.94712012,2994.9,2993.5,0.00501605]
[1766458011348,0.94712012,2994.9,2993.5,3.34601605]
[1766458011948,9.138,2994.8,2993.5,3.34601605]
[1766458012253,0.94712012,2994.7,2993.5,3.34601605]
[1766458012658,3.341,2994.6,2993.5,3.34601605]
[1766458013357,0.94834102,2994.5,2993.5,3.34601605]
[1766458013951,3.341,2994.4,2993.5,3.34601605]
[1766458014457,0.9497636,2994.3,2993.5,3.34601605]
[1766458016856,0.9497636,2994.2,2993.5,3.34601605]
[1766458017152,0.9497636,2994.3,2993.5,3.34601605]
[1766458017358,0.9497636,2994.2,2993.5,3.34601605]
[1766458017560,0.9497636,2994.1,2993.5,3.34601605]
[1766458017759,0.9497636,2994.3,2993.5,3.34601605]
[1766458017961,0.9497636,2994.2,2993.5,3.34601605]
[1766458018158,0.9497636,2994.1,2993.5,3.34601605]
[1766458018356,0.9497636,2994.0,2993.5,3.34601605]
[1766458018660,3.341,2994.2,2993.5,3.34601605]
[1766458018853,0.9497636,2994.1,2993.5,3.34601605]
[1766458019059,0.9497636,2994.0,2993.5,3.34601605]
[1766458019264,0.9497636,2994.1,2993.5,3.34601605]
[1766458019457,3.1446,2994.2,2993.5,3.34601605]
[1766458019658,3.341,2994.4,2993.5,3.34601605]
[1766458020551,1.16510687,2994.8,2993.5,3.34601605]
[1766458020760,3.341,2994.8,2993.5,3.34601605]
[1766458021462,3.341,2994.8,2993.6,9.339]
[1766458022461,1.33564227,2995.1,2993.6,9.339]
[1766458022756,3.341,2995.0,2993.6,9.339]
[1766458022963,3.341,2994.9,2993.6,9.339]
[1766458023363,0.0035054,2995.1,2993.6,9.339]
[1766458023763,3.341,2995.3,2993.7,3.75318763]
[1766458024262,3.341,2995.3,2993.8,40.8]
[1766458024462,3.341,2995.3,2993.9,3.341]
[1766458024663,0.00271902,2995.3,2994.0,6.543]
[1766458025465,1.16510687,2996.5,2994.0,6.543]
[1766458025660,8.353,2996.3,2994.0,6.543]
[1766458025862,4.242,2996.1,2994.0,6.543]
[1766458026065,4.242,2996.1,2994.3,2.20807569]
[1766458026260,4.242,2996.1,2994.4,11.694]
[1766458026464,3.341,2996.0,2994.5,5.41]
[1766458026666,3.341,2996.0,2995.0,0.00501605]
[1766458026867,3.341,2996.0,2994.4,0.00252335]
[1766458026868,2.20807569,2995.6,2994.4,0.00252335]
[1766458027167,8.352,2995.9,2994.4,0.00252335]
[1766458027168,9.137,2995.5,2994.4,0.00252335]
[1766458027366,3.341,2995.4,2994.4,0.00252335]
[1766458027859,0.00498758,2995.2,2994.6,0.0050075]
[1766458028169,3.34,2995.1,2994.6,0.0050075]
[1766458029066,3.34,2995.1,2994.4,0.00252335]
[1766458029258,3.34,2995.1,2994.1,3.341]
[1766458029461,0.00498758,2995.2,2994.1,3.341]
[1766458029668,3.34,2995.1,2994.1,3.341]
[1766458029868,3.34,2995.0,2994.1,3.341]
[1766458030060,3.34,2995.0,2994.3,0.0050075]
[1766458030258,3.34,2995.0,2994.3,0.00917591]
[1766458030968,0.00498758,2995.2,2994.3,0.00917591]
[1766458031171,3.34,2995.1,2994.3,0.00917591]
[1766458031572,0.00498758,2995.2,2994.3,0.00917591]
[1766458031870,3.34,2995.1,2994.3,0.00917591]
[1766458032970,3.34,2995.1,2994.4,3.34]
[1766458035172,3.34,2995.0,2994.4,3.34]
[1766458035473,3.34,2995.0,2994.4,1.1702]
[1766458035662,3.34,2995.0,2992.9,3.43927941]
[1766458035663,3.34,2995.0,2993.7,3.34]
[1766458035972,3.34,2995.0,2993.4,3.32]
[1766458035973,3.34,2995.0,2993.2,40.8]
[1766458036171,0.16706,2994.7,2993.3,3.34]
[1766458036469,6.803,2994.6,2993.3,3.34]
[1766458036674,6.803,2994.6,2993.7,0.0050075]
[1766458037569,6.803,2994.6,2993.7,7.5e-06]
[1766458037767,2.20807569,2994.3,2993.3,0.00293449]
[1766458037973,3.34,2994.2,2993.0,3.34]
[1766458038870,3.34,2994.2,2993.3,0.0050075]
[1766458040676,5.796,2994.1,2993.3,0.0050075]
[1766458040870,9.137,2994.1,2993.3,0.0050075]
[1766458041270,0.16707,2994.4,2993.3,0.0050075]
[1766458041575,3.341,2994.3,2993.3,0.0050075]
[1766458042478,2.20807569,2993.4,2990.7,0.16728]
[1766458042777,9.137,2993.3,2990.9,14.207]
[1766458042979,9.137,2993.3,2991.0,40.8]
[1766458043170,9.137,2993.2,2991.0,40.8]
[1766458043479,9.137,2993.2,2991.8,0.0050075]
[1766458043480,0.0050075,2992.4,2991.8,0.0050075]
[1766458043676,3.3460075,2992.4,2991.8,0.0050075]
[1766458044782,0.17118875,2993.2,2991.8,0.0050075]
[1766458044982,9.137,2993.1,2991.8,0.0050075]
[1766458045883,2.20807569,2992.6,2991.0,40.80254635]
[1766458046181,9.138,2992.5,2991.2,3.341]
[1766458046879,3.341,2992.4,2991.6,0.0050075]
[1766458048379,5.797,2992.5,2991.6,0.0050075]
[1766458048586,3.342,2992.3,2991.6,0.0050075]
[1766458048985,3.342,2992.3,2990.8,6.538]
[1766458048986,2.20807569,2992.0,2990.3,3.342]
[1766458049280,9.14,2991.9,2990.4,3.342]
[1766458049484,9.14,2991.9,2990.5,3.342]
[1766458049784,9.14,2991.9,2990.6,3.342]
[1766458049981,0.0050075,2991.5,2991.0,0.00335832]
[1766458050178,3.342,2991.4,2991.0,0.00335832]
[1766458052680,3.342,2992.3,2991.0,3.34535832]
[1766458052984,3.343,2992.2,2991.0,3.34535832]
[1766458053287,3.343,2992.1,2991.0,3.34535832]
[1766458053689,0.0050075,2991.8,2991.0,3.34535832]
[1766458054089,3.343,2992.3,2991.0,3.34535832]
[1766458054986,2.20807569,2993.4,2991.0,3.34535832]
[1766458055193,11.701,2993.1,2991.2,2.20807569]
[1766458055384,5.799,2993.0,2991.3,5.429]
[1766458055891,2.20807569,2993.4,2991.3,5.429]
[1766458056092,0.0050075,2992.5,2991.3,5.429]
[1766458056689,5.799,2993.0,2991.3,5.429]
[1766458056888,3.64791443,2994.0,2991.6,2.20807569]
[1766458057089,3.34704875,2993.2,2991.7,11.701]
[1766458057294,0.00404875,2993.2,2991.7,11.701]
[1766458057587,0.00404875,2993.2,2992.0,2.20807569]
[1766458057787,0.00404875,2993.2,2992.1,9.883]
[1766458058390,3.343,2993.6,2992.1,9.883]
[1766458058590,3.343,2993.9,2992.1,9.883]
[1766458058891,0.00498758,2993.3,2992.7,0.0050075]
[1766458059096,0.00498758,2993.3,2992.8,9.883]
[1766458059391,0.00246418,2993.3,2992.8,9.88609262]
[1766458061483,3.343,2993.9,2992.8,9.88609262]
[1766458062378,3.34546194,2993.9,2992.8,9.88609262]
[1766458062990,3.342,2994.2,2992.8,9.88609262]
[1766458064086,3.3454534,2994.2,2992.8,9.88609262]
[1766458064287,0.0034534,2994.2,2992.9,2.20807569]
[1766458064783,3.342,2994.7,2992.9,2.20807569]
[1766458065091,3.342,2994.7,2993.0,18.254]
[1766458065693,3.34521362,2994.7,2993.0,18.254]
[1766458066689,3.34521362,2994.7,2993.3,2.20807569]
[1766458066893,3.34521362,2994.7,2993.4,9.901]
[1766458067201,0.00321362,2994.7,2993.7,2.20807569]
[1766458067495,3.342,2995.3,2993.8,18.257]
[1766458067685,1.44943414,2995.6,2994.3,0.0050075]
[1766458067890,3.342,2995.8,2994.4,9.901]
[1766458068281,3.34543392,2995.8,2994.4,9.901]
[1766458070199,3.34543392,2995.8,2994.3,0.0050075]
[1766458070493,3.34543392,2995.8,2994.5,6.567]
[1766458071692,5.55350961,2995.8,2994.3,0.0050075]
[1766458072091,0.167,2995.7,2994.3,0.0050075]
[1766458072897,0.16702,2995.3,2993.9,9.909]
[1766458073096,7.42,2995.2,2993.9,9.909]
[1766458073889,0.00500749,2994.8,2994.3,0.0050075]
[1766458074096,3.341,2994.7,2993.8,3.341]
[1766458074497,0.00500749,2994.8,2993.8,3.341]
[1766458074689,3.341,2994.7,2993.8,3.341]
[1766458075086,3.341,2994.7,2992.8,0.00309262]
[1766458075395,3.341,2994.7,2992.9,3.341]
[1766458075691,3.341,2994.7,2993.0,9.909]
[1766458075888,2.20807569,2994.4,2992.8,0.00309262]
[1766458076092,2.20807569,2993.5,2991.7,40.8]
[1766458076292,6.82,2993.4,2991.7,44.141]
[1766458076496,6.82,2993.4,2991.5,3.341]
[1766458076497,2.20807569,2993.1,2991.5,3.341]
[1766458076797,9.137,2993.0,2991.5,3.341]
[1766458076992,3.341,2992.9,2991.5,3.34362435]
[1766458077200,0.0050075,2992.5,2991.9,0.0050075]
[1766458078003,0.0050075,2992.5,2991.9,6.5730075]
[1766458078193,0.00384594,2993.0,2991.9,6.5730075]
[1766458078798,0.00384594,2993.0,2992.0,9.909]
[1766458079095,0.0050075,2992.8,2992.0,9.909]
[1766458080599,2.20807569,2992.4,2990.0,1.22034619]
[1766458080795,11.697,2992.3,2990.1,3.342]
[1766458080993,11.697,2992.3,2990.2,3.342]
[1766458081189,11.697,2992.3,2990.3,5.452]
[1766458081595,0.0050075,2991.6,2991.0,0.0050075]
[1766458081805,3.342,2991.5,2991.0,0.0050075]
[1766458082599,3.342,2992.0,2991.0,0.0050075]
[1766458083605,0.0050075,2991.8,2991.0,0.0050075]
[1766458084906,0.0050075,2991.8,2982.9,17.43943345]
[1766458084907,0.16727,2990.9,2988.8,1.23391119]
[1766458085098,0.16724,2991.5,2989.1,2.20807569]
[1766458085406,3.61524,2991.4,2989.2,1.356]
[1766458085708,7.011,2991.3,2989.2,4.698]
[1766458085908,0.00501622,2990.6,2990.0,0.00501622]
[1766458089811,5.80501622,2990.6,2990.0,0.00501622]
[1766458091813,0.00501622,2990.6,2990.0,0.00501622]
[1766458092315,3.344,2990.5,2990.0,0.00501622]
[1766458092612,0.00501622,2990.6,2990.0,3.34901622]
[1766458093810,0.00501622,2990.6,2990.0,0.00501622]
[1766458096921,0.00300977,2991.4,2990.0,0.00501622]
[1766458097115,0.00300977,2991.4,2990.0,8.36601622]
[1766458097420,0.00300977,2991.4,2990.1,9.91]
[1766458098315,3.344,2991.9,2990.1,9.91]
[1766458098819,0.00501622,2991.3,2990.1,9.91]
[1766458099520,0.00787869,2991.3,2990.1,9.91]
[1766458099722,3.344,2991.9,2990.1,9.91]
[1766458100620,1.43003878,2992.1,2990.1,9.91]
[1766458100823,0.00501037,2991.4,2990.1,9.91]
[1766458101515,0.00501037,2991.4,2990.0,0.17233622]
[1766458101715,0.00376734,2991.9,2990.1,51.721]
[1766458102821,0.00376734,2991.9,2990.3,2.511614]
[1766458103120,0.00376734,2991.9,2990.4,3.344]
[1766458104122,0.00376734,2991.9,2990.2,0.1673]
[1766458104327,0.00376734,2991.9,2990.3,18.285]
[1766458106128,3.344,2992.7,2990.9,2.511614]
[1766458106328,3.344,2992.7,2991.0,9.934]
[1766458106528,3.344,2992.7,2991.1,8.361]
[1766458106722,3.344,2992.7,2991.6,0.00501622]
[1766458107025,3.344,2992.7,2991.7,9.935]
[1766458107730,3.34744198,2992.7,2991.7,9.93927973]
[1766458108722,0.00344198,2992.7,2991.7,9.93927973]
[1766458109622,3.344,2993.3,2991.7,9.93927973]
[1766458109832,0.16709,2994.2,2991.7,9.93927973]
[1766458109833,3.344,2993.6,2991.9,2.511614]
[1766458110127,3.344,2993.7,2992.0,11.704]
[1766458110322,3.344,2993.7,2992.1,6.589]
[1766458110525,3.348293,2993.7,2992.1,6.589]
[1766458112330,3.348293,2993.7,2992.2,40.8]
[1766458112529,0.004293,2993.7,2991.7,9.73e-06]
[1766458112829,0.004293,2993.7,2989.9,0.16732]
[1766458112830,0.16717,2992.7,2991.4,3.343]
[1766458113022,12.68318,2992.6,2991.4,3.1463]
[1766458113228,3.343,2992.5,2991.4,2.9496]
[1766458113617,3.343,2992.5,2991.7,0.00501622]
[1766458114326,3.343,2992.5,2991.7,6.22e-06]
[1766458119826,0.16719,2992.4,2991.4,0.00373087]
[1766458120033,1.10295005,2992.4,2991.4,0.00373087]
[1766458120235,0.1672,2992.2,2990.3,40.8]
[1766458120435,9.143,2992.1,2990.4,3.343]
[1766458120625,9.143,2992.1,2990.4,9.928]
[1766458121136,9.143,2992.1,2991.0,0.00501622]
[1766458121326,9.143,2992.1,2991.0,0.00835074]
[1766458121529,9.3102,2992.1,2991.0,0.00835074]
[1766458122232,0.93513021,2992.0,2991.0,0.00835074]
[1766458122534,0.93513021,2992.0,2990.0,8.359]
[1766458122535,0.93513021,2992.0,2988.0,5.861614]
[1766458122836,2.678834,2991.9,2989.5,13.019]
[1766458123035,12.63913021,2991.8,2989.6,40.8]
[1766458123333,0.93513021,2991.7,2989.6,40.8]
[1766458123530,0.00501622,2991.0,2990.4,0.00501622]
[1766458123735,0.00891251,2991.0,2990.4,3.34901622]
[1766458126837,0.00891251,2991.0,2990.4,0.00501622]
[1766458127029,0.00891251,2991.0,2990.4,3.34901622]
[1766458129934,3.344,2991.2,2990.4,3.34901622]
[1766458130543,3.344,2991.5,2990.4,3.34901622]
[1766458131039,0.00501622,2991.2,2990.4,3.34901622]
[1766458132442,3.3470282,2991.5,2990.4,3.34901622]
[1766458133544,0.00501622,2991.2,2990.4,3.34901622]
[1766458133741,3.3470282,2991.5,2990.4,3.34901622]
[1766458134041,5.96822,2991.8,2990.4,3.34901622]
[1766458134042,9.145,2991.8,2990.4,3.34901622]
[1766458135036,9.14874949,2991.8,2990.4,3.34901622]
[1766458136233,9.14441831,2991.8,2990.4,3.34901622]
[1766458137235,9.14441831,2991.8,2990.5,8.361]
[1766458138244,9.14441831,2991.8,2990.4,0.00501622]
[1766458138437,9.14441831,2991.8,2990.6,6.581]
[1766458141446,9.14441831,2991.8,2990.4,0.00501622]
[1766458141943,0.16723,2991.7,2990.5,3.344]
[1766458144046,8.361,2991.6,2990.5,3.344]
[1766458144246,3.344,2991.5,2990.5,3.344]
[1766458144448,3.344,2991.5,2990.4,0.00501622]
[1766458146044,0.16723,2991.7,2990.4,0.00501622]
[1766458146354,3.344,2991.5,2990.4,0.00501622]
[1766458147753,3.344,2991.7,2990.4,0.00501622]
[1766458148950,0.00374949,2991.8,2990.5,10.57690801]
[1766458149252,9.79898543,2992.8,2990.5,10.57690801]
[1766458149253,3.344,2992.7,2991.0,2.21490801]
[1766458149453,3.344,2992.7,2991.1,50.721]
[1766458150055,3.34810005,2992.7,2991.1,50.721]
[1766458150552,3.34810005,2992.7,2991.1,40.8]
[1766458150755,3.34810005,2992.7,2991.2,9.922]
[1766458151946,0.00410005,2992.7,2991.3,2.21490801]
[1766458152148,1.43698543,2992.8,2991.3,2.21490801]
[1766458152347,0.84938543,2992.8,2991.3,5.89733853]
[1766458153249,0.1671,2993.9,2991.7,2.21490801]
[1766458153451,3.447,2993.8,2992.5,0.00501622]
[1766458153652,3.447,2993.8,2992.6,3.344]
[1766458154152,0.1671,2993.9,2992.6,3.344]
[1766458154355,0.00359117,2993.9,2992.6,3.34727081]
[1766458157661,0.00359117,2993.9,2992.6,0.00327081]
[1766458157859,0.00359117,2993.9,2992.7,7.295]
[1766458159059,3.343,2995.3,2993.8,2.21490801]
[1766458159361,3.343,2995.3,2994.3,0.00501622]
[1766458159558,3.343,2995.3,2994.4,3.343]
[1766458159959,0.00343507,2995.3,2994.4,3.343]
[1766458161360,3.343,2995.5,2994.5,6.579]
[1766458161863,1.47086426,2995.7,2994.5,6.579]
[1766458162261,0.00333895,2995.7,2994.6,8.356]
[1766458162562,0.00333895,2995.7,2994.7,3.342]
[1766458162758,0.00333895,2995.7,2994.7,3.34584392]
[1766458172679,3.34,2996.2,2994.7,3.34584392]
[1766458173578,3.34386728,2996.2,2994.7,3.34584392]
[1766458173882,3.34386728,2996.2,2994.9,2.21490801]
[1766458174084,3.34386728,2996.2,2995.0,9.915]
[1766458177482,3.34,2996.5,2995.3,2.21490801]
[1766458177675,0.16694,2996.8,2995.3,2.21490801]
[1766458177676,3.34,2996.7,2995.4,16.367]
[1766458177884,3.34,2996.7,2995.8,0.00500759]
[1766458178080,1.48298601,2997.2,2995.9,8.021]
[1766458178284,3.34,2997.1,2995.9,8.021]
[1766458178587,3.34393265,2997.1,2995.9,8.021]
[1766458179489,0.00393265,2997.1,2996.1,2.21490801]
[1766458179791,1.48298601,2997.2,2996.2,9.911]
[1766458180583,1.48595305,2997.2,2996.2,9.911]
[1766458184292,3.339,2997.6,2996.2,9.911]
[1766458185289,3.34208817,2997.6,2996.2,9.911]
[1766458185793,3.34208817,2997.6,2996.4,2.21490801]
[1766458185995,3.34208817,2997.6,2996.5,3.339]
[1766458186191,3.34208817,2997.6,2996.6,6.566]
[1766458186490,3.34208817,2997.6,2996.7,9.905]
[1766458187798,3.34208817,2997.6,2996.6,3.339]
[1766458188089,1.16219539,2998.7,2997.0,2.21490801]
[1766458188282,3.338,2998.7,2997.6,0.00500759]
[1766458188488,3.338,2998.7,2997.7,6.368]
[1766458188682,3.338,2998.7,2997.7,6.565]
[1766458188894,3.338,2998.7,2997.8,3.338]
[1766458189191,3.34146394,2998.7,2997.8,3.34067498]
[1766458189493,3.34146394,2998.7,2997.8,0.00267498]
[1766458189693,3.34146394,2998.7,2997.8,3.34067498]
[1766458190497,3.34146394,2998.7,2997.8,0.00267498]
[1766458190788,3.34146394,2998.7,2997.8,3.34067498]
[1766458191184,2.21490801,2998.5,2995.9,2.21490801]
[1766458191387,13.058,2998.4,2996.3,11.684]
[1766458191582,13.058,2998.4,2996.3,18.247]
[1766458191994,13.22485,2998.4,2996.3,18.247]
[1766458192195,14.40472284,2998.4,2996.3,0.00427257]
[1766458192397,0.00497884,2997.6,2997.1,7.59e-06]
[1766458192590,3.34297884,2997.6,2997.1,7.59e-06]
[1766458192893,0.00497884,2997.6,2996.3,0.00427257]
[1766458193087,0.00497884,2997.6,2996.3,3.34227257]
[1766458193797,3.338,2997.5,2996.3,3.34227257]
[1766458194094,3.34297884,2997.6,2996.6,0.00500759]
[1766458194500,0.00497884,2997.6,2996.6,3.34300759]
[1766458194794,3.338,2997.5,2996.6,3.34300759]
[1766458195299,0.00497884,2997.6,2996.6,3.34300759]
[1766458202001,3.337,2997.5,2996.6,3.34200759]
[1766458202299,0.92961573,2997.4,2996.6,3.34200759]
[1766458204997,3.337,2997.5,2996.6,3.34200759]
[1766458205199,0.92961573,2997.4,2996.6,3.34200759]
[1766458205801,0.40231573,2997.4,2996.6,3.34200759]
[1766458206000,3.337,2997.5,2996.6,3.34200759]
[1766458206305,0.00497884,2997.6,2996.6,3.34200759]
[1766458209300,3.337,2997.8,2996.6,3.34200759]
[1766458210004,3.337,2998.1,2996.6,3.34200759]
[1766458210305,3.34046394,2998.7,2996.7,3.52865395]
[1766458210505,3.34046394,2998.7,2996.8,8.344]
[1766458210706,3.34046394,2998.7,2996.9,3.337]